fUST/lending_fUST_20250516
["ID","MTS","AMOUNT","RATE_DAILY","PERIOD"]
[361266785,1747405841182,-500.0,0.00012899,2]
[361266786,1747405841191,-500.0,0.00012899,2]
[361266787,1747405841201,-500.0,0.00012899,2]
[361266788,1747405841211,-500.0,0.00012899,2]
[361266789,1747405841221,-500.0,0.00012899,2]
[361266790,1747405841230,-189.84264691,0.00012899,2]
[361266791,1747405841240,-500.0,0.00012899,2]
[361266792,1747405841249,-500.0,0.00012899,2]
[361266793,1747405841259,-500.0,0.00012899,2]
[361266794,1747405841268,-500.0,0.00012899,2]
[361266795,1747405841277,-500.0,0.00012899,2]
[361266796,1747405841287,-500.0,0.00012899,2]
[361266797,1747405841296,-500.0,0.00012899,2]
[361266798,1747405841306,-500.0,0.00012899,2]
[361266799,1747405841315,-551.58519289,0.00012899,2]
[361266800,1747405841325,-500.0,0.00012899,2]
[361266801,1747405841334,-500.0,0.00012899,2]
[361266802,1747405841344,-500.0,0.00012899,2]
[361266803,1747405841354,-500.0,0.00012899,2]
[361266804,1747405841364,-354.3531987,0.00012899,2]
[361266805,1747405841373,-500.0,0.00012899,2]
[361266806,1747405841385,-500.0,0.00012899,2]
[361266807,1747405841394,-500.0,0.00012899,2]
[361266808,1747405841403,-500.0,0.00012899,2]
[361266809,1747405841413,-311.28676195,0.00012899,2]
[361266851,1747405843627,-188.71323805,0.00012899,2]
[361266853,1747405843636,-500.0,0.00012899,2]
[361266855,1747405843646,-500.0,0.00012899,2]
[361266856,1747405843655,-500.0,0.00012899,2]
[361266857,1747405843664,-155.6498375,0.00012899,2]
[361266880,1747406815440,-210.47024841,0.00010886,2]
[361266881,1747406818454,-173.09707958,0.00010886,2]
[361266882,1747406820946,-206.21698277,0.00010886,2]
[361266883,1747406825190,-300.0,0.00010886,2]
[361266884,1747406828958,-303.41701588,0.00010886,2]
[361266885,1747406831371,-155.0,0.00010886,2]
[361266886,1747406837406,-175.45118724,0.00010886,2]
[361266887,1747406839059,-113.50741712,0.00010886,2]
[361266888,1747406839088,-308.03846108,0.00011178,2]
[361266889,1747406844688,-164.83253891,0.00011178,2]
[361266890,1747406847451,-255.58225956,0.00011178,2]
[361266891,1747406849092,-249.60773957,0.00011178,2]
[361266892,1747406853171,-229.0914388,0.00011178,2]
[361266893,1747406854826,-321.34927072,0.00011178,2]
[361266894,1747406857052,-190.84214183,0.00011178,2]
[361266895,1747406864646,-155.48722296,0.00011178,2]
[361266896,1747406865072,10000.0,0.0001,60]
[361266897,1747406869077,-565.99779108,0.00011178,2]
[361266898,1747406872332,-230.28736801,0.00011178,2]
[361266899,1747406877947,-153.54201891,0.00011178,2]
[361266900,1747406878820,10000.0,0.0001,60]
[361266901,1747406879898,-300.0,0.00011178,2]
[361266902,1747406881522,-169.29430149,0.00011178,2]
[361266903,1747406884945,-380.70569851,0.00011178,2]
[361266904,1747406886970,-285.90165442,0.00011178,2]
[361266905,1747406889025,-277.58125823,0.00011178,2]
[361266906,1747406891928,10000.0,0.00027397,120]
[361266907,1747406893579,-200.06862657,0.00011178,2]
[361266908,1747406895096,-230.23822979,0.00011178,2]
[361266909,1747406896912,-269.76177021,0.00011178,2]
[361266910,1747406901644,-61.79020935,0.00011178,2]
[361266911,1747406905192,-361.99871906,0.00011066,2]
[361266912,1747406909596,-247.00956722,0.00011066,2]
[361266914,1747406912115,4174.0,0.00027397,120]
[361266915,1747406913191,-157.48362138,0.00011066,2]
[361266917,1747406921645,-165.01443842,0.00011066,2]
[361266918,1747406923217,-243.10366515,0.00011066,2]
[361266919,1747406925258,-195.21107159,0.00011066,2]
[361266920,1747406927956,-300.0,0.00011066,2]
[361266921,1747406931959,-3201.0,0.00011066,2]
[361266922,1747406933242,-129.17891718,0.00011066,2]
[361266951,1747407032104,-5000.0,0.00011305,2]
[361266952,1747407032114,-153.03333796,0.00011419,2]
[361266953,1747407032123,-300.0,0.0001152,2]
[361266954,1747407032132,-300.0,0.0001152,2]
[361266955,1747407032142,-927.0,0.0001152,2]
[361266956,1747407032151,-1055.29279845,0.00011521,2]
[361266957,1747407032163,-18252.64540605,0.00011521,2]
[361266958,1747407032173,-153.03333796,0.0001175,2]
[361266959,1747407032183,-250.0,0.00011759,2]
[361266960,1747407032193,-11437.929795,0.00011794,2]
[361266961,1747407032203,-153.03333796,0.0001208,2]
[361266962,1747407032213,-434.16914288,0.0001237,2]
[361266963,1747407032223,-153.03333796,0.00012411,2]
[361266964,1747407032232,-206.21698277,0.0001247,2]
[361266965,1747407032242,-1039.5045147,0.0001247,2]
[361266966,1747407032252,-1039.5045147,0.0001247,2]
[361266967,1747407032261,-500.0,0.0001247,2]
[361266968,1747407032273,-1039.5045147,0.0001247,2]
[361266970,1747407032284,-500.0,0.0001247,2]
[361266971,1747407032293,-1039.5045147,0.0001247,2]
[361266972,1747407032303,-500.0,0.0001247,2]
[361266973,1747407032313,-1039.5045147,0.0001247,2]
[361266974,1747407032323,-1039.5045147,0.0001247,2]
[361266975,1747407032332,-1039.5045147,0.0001247,2]
[361266976,1747407032343,-1039.5045147,0.0001247,2]
[361266977,1747407032352,-1039.5045147,0.0001247,2]
[361266978,1747407032362,-1039.5045147,0.0001247,2]
[361266979,1747407032372,-1039.5045147,0.0001247,2]
[361266980,1747407032383,-1039.5045147,0.0001247,2]
[361266981,1747407032393,-1039.5045147,0.0001247,2]
[361266982,1747407032402,-1039.5045147,0.0001247,2]
[361266983,1747407032411,-1039.5045147,0.0001247,2]
[361266984,1747407032421,-1039.5045147,0.0001247,2]
[361266986,1747407032431,-1039.5045147,0.0001247,2]
[361266987,1747407032440,-1039.5045147,0.0001247,2]
[361266989,1747407032450,-1039.5045147,0.0001247,2]
[361266990,1747407032460,-1039.5045147,0.0001247,2]
[361266991,1747407032470,-1039.5045147,0.0001247,2]
[361266992,1747407032479,-500.0,0.0001247,2]
[361266993,1747407032489,-1039.5045147,0.0001247,2]
[361266994,1747407032498,-1039.5045147,0.0001247,2]
[361266995,1747407032508,-1039.5045147,0.0001247,2]
[361266996,1747407032518,-1039.5045147,0.0001247,2]
[361266997,1747407032529,-1039.5045147,0.0001247,2]
[361266998,1747407032538,-399.03056371,0.0001247,2]
[361266999,1747407032547,-1039.5045147,0.0001247,2]
[361267000,1747407032557,-1039.5045147,0.0001247,2]
[361267001,1747407032566,-1039.5045147,0.0001247,2]
[361267002,1747407032575,-1039.5045147,0.0001247,2]
[361267003,1747407032584,-1039.5045147,0.0001247,2]
[361267004,1747407032593,-241.09892457,0.0001247,2]
[361267005,1747407032602,-1039.5045147,0.0001247,2]
[361267006,1747407032611,-1039.5045147,0.0001247,2]
[361267007,1747407032620,-1039.5045147,0.0001247,2]
[361267008,1747407032629,-1039.5045147,0.0001247,2]
[361267009,1747407032639,-1039.5045147,0.0001247,2]
[361267010,1747407032648,-1039.5045147,0.0001247,2]
[361267011,1747407032657,-1039.5045147,0.0001247,2]
[361267012,1747407032667,-500.0,0.0001247,2]
[361267013,1747407032676,-1039.5045147,0.0001247,2]
[361267014,1747407032686,-1039.5045147,0.0001247,2]
[361267015,1747407032695,-1039.5045147,0.0001247,2]
[361267016,1747407032705,-500.0,0.0001247,2]
[361267017,1747407032713,-1039.5045147,0.0001247,2]
[361267018,1747407032723,-1039.5045147,0.0001247,2]
[361267019,1747407032732,-1039.5045147,0.0001247,2]
[361267020,1747407032741,-1039.5045147,0.0001247,2]
[361267021,1747407032751,-1039.5045147,0.0001247,2]
[361267022,1747407032761,-1039.5045147,0.0001247,2]
[361267023,1747407032770,-1039.5045147,0.0001247,2]
[361267024,1747407032779,-1039.5045147,0.0001247,2]
[361267025,1747407032788,-500.0,0.0001247,2]
[361267026,1747407032798,-1039.5045147,0.0001247,2]
[361267027,1747407032807,-1039.5045147,0.0001247,2]
[361267028,1747407032816,-500.0,0.0001247,2]
[361267029,1747407032826,-1039.5045147,0.0001247,2]
[361267030,1747407032835,-1039.5045147,0.0001247,2]
[361267031,1747407032846,-1039.5045147,0.0001247,2]
[361267032,1747407032857,-1039.5045147,0.0001247,2]
[361267033,1747407032867,-1015.74441151,0.0001247,2]
[361267034,1747407032876,-1015.74441151,0.0001247,2]
[361267035,1747407032886,-1015.74441151,0.0001247,2]
[361267036,1747407032895,-1015.74441151,0.0001247,2]
[361267037,1747407032904,-1015.74441151,0.0001247,2]
[361267038,1747407032913,-1015.74441151,0.0001247,2]
[361267039,1747407032924,-1015.74441151,0.0001247,2]
[361267040,1747407032934,-1015.74441151,0.0001247,2]
[361267041,1747407032943,-1015.74441151,0.0001247,2]
[361267042,1747407032953,-1015.74441151,0.0001247,2]
[361267043,1747407032963,-1015.74441151,0.0001247,2]
[361267044,1747407032972,-1015.74441151,0.0001247,2]
[361267045,1747407032982,-1015.74441151,0.0001247,2]
[361267046,1747407032991,-1015.74441151,0.0001247,2]
[361267047,1747407033000,-1015.74441151,0.0001247,2]
[361267048,1747407033010,-1015.74441151,0.0001247,2]
[361267049,1747407033019,-1015.74441151,0.0001247,2]
[361267050,1747407033029,-1015.74441151,0.0001247,2]
[361267051,1747407033038,-1015.74441151,0.0001247,2]
[361267052,1747407033048,-1015.74441151,0.0001247,2]
[361267053,1747407033057,-1015.74441151,0.0001247,2]
[361267054,1747407033067,-1015.74441151,0.0001247,2]
[361267055,1747407033076,-1015.74441151,0.0001247,2]
[361267056,1747407033086,-1015.74441151,0.0001247,2]
[361267057,1747407033095,-1015.74441151,0.0001247,2]
[361267058,1747407033105,-1015.74441151,0.0001247,2]
[361267059,1747407033114,-1015.74441151,0.0001247,2]
[361267060,1747407033124,-1015.74441151,0.0001247,2]
[361267061,1747407033133,-1015.74441151,0.0001247,2]
[361267062,1747407033143,-1015.74441151,0.0001247,2]
[361267063,1747407033152,-1015.74441151,0.0001247,2]
[361267064,1747407033162,-1015.74441151,0.0001247,2]
[361267065,1747407033172,-1015.74441156,0.0001247,2]
[361267066,1747407033182,-1015.74441156,0.0001247,2]
[361267067,1747407033191,-1015.74441155,0.0001247,2]
[361267068,1747407033202,-50000.0,0.00012471,2]
[361267069,1747407033211,-1347.035575,0.00012511,2]
[361267070,1747407033220,-834.156629,0.00012512,2]
[361267071,1747407033230,-151.0,0.00012512,2]
[361267072,1747407033239,-151.0,0.00012512,2]
[361267073,1747407033249,-151.0,0.00012512,2]
[361267074,1747407033259,-176.74468,0.00012512,2]
[361267075,1747407033269,-151.0,0.00012512,2]
[361267076,1747407033279,-151.0,0.00012512,2]
[361267077,1747407033288,-151.0,0.00012512,2]
[361267078,1747407033298,-151.0,0.00012512,2]
[361267079,1747407033307,-662.357359,0.00012512,2]
[361267080,1747407033317,-662.357359,0.00012512,2]
[361267081,1747407033326,-316.64206735,0.00012572,2]
[361267082,1747407033336,-151.0,0.00012572,2]
[361267083,1747407033346,-151.0,0.00012572,2]
[361267084,1747407033356,-151.0,0.00012572,2]
[361267085,1747407033366,-151.0,0.00012572,2]
[361267086,1747407033376,-151.0,0.00012572,2]
[361267087,1747407033386,-151.0,0.00012572,2]
[361267088,1747407033396,-151.0,0.00012572,2]
[361267089,1747407033406,-151.0,0.00012572,2]
[361267090,1747407033416,-151.0,0.00012572,2]
[361267091,1747407033425,-420.0,0.00012652,2]
[361267092,1747407033436,-420.0,0.00012652,2]
[361267093,1747407033445,-434.16914287,0.0001278,2]
[361267094,1747407033455,-151.0,0.00012888,2]
[361267095,1747407033465,-151.0,0.00012888,2]
[361267096,1747407033475,-228.984425,0.00012888,2]
[361267097,1747407033485,-4458.66,0.0001289,2]
[361267098,1747407033494,-434.16914287,0.0001319,2]
[361267099,1747407033503,-207.4,0.0001345,2]
[361267100,1747407033513,-201.2836422,0.00013564,2]
[361267101,1747407033523,-434.16914287,0.00013599,2]
[361267102,1747407033532,-400.57094343,0.00013698,2]
[361267103,1747407033542,-400.0,0.00013698,2]
[361267104,1747407033552,-450.0,0.00013698,2]
[361267105,1747407033562,-401.64209689,0.00013698,2]
[361267106,1747407033571,-400.0,0.00013698,2]
[361267107,1747407033581,-450.0,0.00013698,2]
[361267108,1747407033590,-151.0,0.00013698,2]
[361267109,1747407033600,-151.0,0.00013698,2]
[361267110,1747407033609,-450.0,0.00013698,2]
[361267111,1747407033619,-450.0,0.00013698,2]
[361267112,1747407033629,-400.0,0.00013698,2]
[361267113,1747407033638,-400.0,0.00013698,2]
[361267114,1747407033648,-400.0,0.00013698,2]
[361267115,1747407033657,-400.0,0.00013698,2]
[361267116,1747407033667,-400.0,0.00013698,2]
[361267117,1747407033676,-400.0,0.00013698,2]
[361267118,1747407033686,-400.0,0.00013698,2]
[361267119,1747407033695,-400.0,0.00013698,2]
[361267120,1747407033705,-450.0,0.00013698,2]
[361267121,1747407033715,-401.81642604,0.00013698,2]
[361267122,1747407033724,-400.0,0.00013698,2]
[361267123,1747407033734,-438.17,0.00013698,2]
[361267124,1747407033743,-400.0,0.00013698,2]
[361267125,1747407033753,-400.0,0.00013698,2]
[361267126,1747407033763,-430.14,0.00013698,2]
[361267127,1747407033772,-450.0,0.00013698,2]
[361267128,1747407033782,-387.64834771,0.00013698,2]
[361267129,1747407033791,-400.0,0.00013698,2]
[361267130,1747407033800,-400.0,0.00013698,2]
[361267131,1747407033810,-400.0,0.00013698,2]
[361267132,1747407033819,-580.7,0.00013698,2]
[361267133,1747407033828,-400.0,0.00013698,2]
[361267134,1747407033838,-400.0,0.00013698,2]
[361267135,1747407033850,-400.99964361,0.00013698,2]
[361267136,1747407033860,-151.0,0.00013698,2]
[361267137,1747407033869,-151.0,0.00013698,2]
[361267138,1747407033880,-401.08225389,0.00013698,2]
[361267139,1747407033889,-234.19334437,0.00013698,2]
[361267140,1747407033898,-151.0,0.00013698,2]
[361267141,1747407033908,-400.0,0.00013698,2]
[361267142,1747407033917,-400.0,0.00013698,2]
[361267143,1747407033926,-151.0,0.00013698,2]
[361267144,1747407033936,-271.32421321,0.00013698,2]
[361267145,1747407033945,-151.0,0.00013698,2]
[361267146,1747407033955,-400.0,0.00013698,2]
[361267147,1747407033964,-450.0,0.00013698,2]
[361267148,1747407033974,-400.0,0.00013698,2]
[361267149,1747407033983,-400.0,0.00013698,2]
[361267150,1747407033992,-450.0,0.00013698,2]
[361267151,1747407034002,-401.26755767,0.00013698,2]
[361267152,1747407034011,-450.0,0.00013698,2]
[361267153,1747407034022,-450.0,0.00013698,2]
[361267154,1747407034031,-407.06301796,0.00013698,2]
[361267155,1747407034041,-151.0,0.00013698,2]
[361267156,1747407034050,-400.0,0.00013698,2]
[361267157,1747407034059,-151.0,0.00013698,2]
[361267158,1747407034068,-404.13308422,0.00013698,2]
[361267159,1747407034078,-450.0,0.00013698,2]
[361267160,1747407034087,-400.0,0.00013698,2]
[361267161,1747407034097,-402.02042508,0.00013698,2]
[361267162,1747407034106,-301.32862152,0.00013698,2]
[361267163,1747407034115,-151.0,0.00013698,2]
[361267164,1747407034125,-151.0,0.00013698,2]
[361267165,1747407034135,-151.0,0.00013698,2]
[361267166,1747407034144,-151.0,0.00013698,2]
[361267167,1747407034154,-151.0,0.00013698,2]
[361267168,1747407034164,-400.0,0.00013698,2]
[361267169,1747407034174,-400.0,0.00013698,2]
[361267170,1747407034183,-300.0,0.00013698,2]
[361267171,1747407034193,-404.49630838,0.00013698,2]
[361267172,1747407034202,-400.0,0.00013698,2]
[361267173,1747407034211,-401.14504339,0.00013698,2]
[361267174,1747407034221,-400.0,0.00013698,2]
[361267175,1747407034230,-400.0,0.00013698,2]
[361267176,1747407034240,-431.94,0.00013698,2]
[361267177,1747407034249,-400.0,0.00013698,2]
[361267178,1747407034258,-151.0,0.00013698,2]
[361267179,1747407034268,-151.0,0.00013698,2]
[361267180,1747407034279,-400.0,0.00013698,2]
[361267181,1747407034288,-151.0,0.00013698,2]
[361267182,1747407034298,-151.0,0.00013698,2]
[361267183,1747407034308,-402.20890747,0.00013698,2]
[361267184,1747407034317,-400.0,0.00013698,2]
[361267185,1747407034327,-401.45829521,0.00013698,2]
[361267186,1747407034336,-400.0,0.00013698,2]
[361267187,1747407034346,-151.0,0.00013698,2]
[361267188,1747407034367,-151.0,0.00013698,2]
[361267189,1747407034377,-400.0,0.00013698,2]
[361267190,1747407034387,-400.0,0.00013698,2]
[361267191,1747407034397,-400.0,0.00013698,2]
[361267192,1747407034407,-469.1,0.00013698,2]
[361267193,1747407034418,-450.0,0.00013698,2]
[361267194,1747407034428,-192.753986,0.00013698,2]
[361267195,1747407034438,-887.73,0.00013698,2]
[361267196,1747407034448,-450.0,0.00013698,2]
[361267197,1747407034457,-400.0,0.00013698,2]
[361267198,1747407034467,-450.0,0.00013698,2]
[361267199,1747407034477,-450.0,0.00013698,2]
[361267200,1747407034486,-151.0,0.00013698,2]
[361267201,1747407034496,-450.0,0.00013698,2]
[361267202,1747407034505,-168.507938,0.00013698,2]
[361267203,1747407034515,-450.0,0.00013698,2]
[361267204,1747407034526,-450.0,0.00013698,2]
[361267205,1747407034535,-163.965925,0.00013698,2]
[361267206,1747407034545,-400.44539006,0.00013698,2]
[361267207,1747407034555,-801.75,0.00013698,2]
[361267208,1747407034565,-163.965925,0.00013698,2]
[361267209,1747407034574,-151.0,0.00013698,2]
[361267210,1747407034584,-151.0,0.00013698,2]
[361267211,1747407034593,-450.0,0.00013698,2]
[361267212,1747407034603,-151.0,0.00013698,2]
[361267213,1747407034612,-151.0,0.00013698,2]
[361267214,1747407034622,-450.0,0.00013698,2]
[361267215,1747407034631,-151.0,0.00013698,2]
[361267216,1747407034641,-160.0,0.00013698,2]
[361267217,1747407034650,-151.0,0.00013698,2]
[361267218,1747407034659,-400.0,0.00013698,2]
[361267219,1747407034669,-437.49,0.00013698,2]
[361267220,1747407034678,-151.0,0.00013698,2]
[361267221,1747407034688,-151.0,0.00013698,2]
[361267222,1747407034698,-400.0,0.00013698,2]
[361267223,1747407034708,-397.82633996,0.00013698,2]
[361267224,1747407034717,-450.0,0.00013698,2]
[361267225,1747407034727,-451.03,0.00013698,2]
[361267226,1747407034736,-450.0,0.00013698,2]
[361267227,1747407034746,-400.64598853,0.00013698,2]
[361267228,1747407034755,-400.0,0.00013698,2]
[361267229,1747407034765,-405.26315831,0.00013698,2]
[361267230,1747407034775,-450.0,0.00013698,2]
[361267231,1747407034785,-450.0,0.00013698,2]
[361267232,1747407034794,-450.0,0.00013698,2]
[361267233,1747407034804,-400.85533004,0.00013698,2]
[361267234,1747407034814,-516.63,0.00013698,2]
[361267235,1747407034823,-450.0,0.00013698,2]
[361267236,1747407034833,-400.0,0.00013698,2]
[361267237,1747407034843,-450.0,0.00013698,2]
[361267238,1747407034856,-450.0,0.00013698,2]
[361267239,1747407034865,-450.0,0.00013698,2]
[361267240,1747407034874,-400.0,0.00013698,2]
[361267241,1747407034884,-407.3406,0.00013698,2]
[361267242,1747407034894,-400.0,0.00013698,2]
[361267243,1747407034903,-580.15,0.00013698,2]
[361267244,1747407034913,-400.63354523,0.00013698,2]
[361267245,1747407034923,-510.85026862,0.00013698,2]
[361267246,1747407034933,-400.0,0.00013698,2]
[361267247,1747407034943,-405.1434482,0.00013698,2]
[361267248,1747407034953,-867.14,0.00013698,2]
[361267249,1747407034962,-400.0,0.00013698,2]
[361267250,1747407034972,-450.0,0.00013698,2]
[361267251,1747407034981,-397.28245832,0.00013698,2]
[361267252,1747407034991,-6545.97,0.00013698,2]
[361267253,1747407035000,-400.0,0.00013698,2]
[361267254,1747407035009,-241.21054526,0.00013698,2]
[361267255,1747407035018,-151.0,0.00013698,2]
[361267256,1747407035029,-151.0,0.00013698,2]
[361267257,1747407035038,-773.115096,0.00013698,2]
[361267258,1747407035047,-773.115096,0.00013698,2]
[361267259,1747407035057,-400.0,0.00013698,2]
[361267260,1747407035066,-400.0,0.00013698,2]
[361267261,1747407035075,-773.115096,0.00013698,2]
[361267262,1747407035085,-773.115096,0.00013698,2]
[361267263,1747407035094,-450.0,0.00013698,2]
[361267264,1747407035103,-400.0,0.00013698,2]
[361267265,1747407035113,-450.0,0.00013698,2]
[361267266,1747407035122,-400.0,0.00013698,2]
[361267267,1747407035132,-404.36422878,0.00013698,2]
[361267268,1747407035141,-450.0,0.00013698,2]
[361267269,1747407035151,-151.0,0.00013698,2]
[361267270,1747407035160,-398.1015585,0.00013698,2]
[361267271,1747407035170,-151.0,0.00013698,2]
[361267272,1747407035180,-333.63689551,0.00013698,2]
[361267273,1747407035190,-151.0,0.00013698,2]
[361267274,1747407035199,-513.23,0.00013698,2]
[361267275,1747407035207,-151.0,0.00013698,2]
[361267276,1747407035216,-400.0,0.00013698,2]
[361267277,1747407035226,-400.0,0.00013698,2]
[361267278,1747407035235,-450.0,0.00013698,2]
[361267279,1747407035244,-555.25,0.00013698,2]
[361267280,1747407035254,-151.0,0.00013698,2]
[361267281,1747407035264,-151.0,0.00013698,2]
[361267282,1747407035273,-400.0,0.00013698,2]
[361267283,1747407035283,-450.0,0.00013698,2]
[361267284,1747407035292,-450.0,0.00013698,2]
[361267285,1747407035302,-401.28383449,0.00013698,2]
[361267286,1747407035311,-450.0,0.00013698,2]
[361267287,1747407035491,-450.0,0.00013698,2]
[361267288,1747407035501,-450.0,0.00013698,2]
[361267289,1747407035510,-450.0,0.00013698,2]
[361267290,1747407035520,-400.0,0.00013698,2]
[361267291,1747407035530,-400.0,0.00013698,2]
[361267292,1747407035539,-450.0,0.00013698,2]
[361267293,1747407035548,-418.07121454,0.00013698,2]
[361267294,1747407035557,-587.04,0.00013698,2]
[361267295,1747407035566,-450.0,0.00013698,2]
[361267296,1747407035575,-450.0,0.00013698,2]
[361267297,1747407035584,-550.9,0.00013698,2]
[361267298,1747407035594,-400.0,0.00013698,2]
[361267299,1747407035603,-199.348031,0.00013698,2]
[361267300,1747407035612,-450.0,0.00013698,2]
[361267301,1747407035621,-450.0,0.00013698,2]
[361267302,1747407035630,-593.99,0.00013698,2]
[361267303,1747407035639,-450.0,0.00013698,2]
[361267304,1747407035649,-398.24494583,0.00013698,2]
[361267305,1747407035658,-400.0,0.00013698,2]
[361267306,1747407035667,-544.16,0.00013698,2]
[361267307,1747407035676,-450.0,0.00013698,2]
[361267308,1747407035685,-450.0,0.00013698,2]
[361267309,1747407035694,-450.0,0.00013698,2]
[361267310,1747407035703,-400.0,0.00013698,2]
[361267311,1747407035713,-397.8875824,0.00013698,2]
[361267312,1747407035722,-400.0,0.00013698,2]
[361267313,1747407035730,-450.0,0.00013698,2]
[361267314,1747407035740,-450.0,0.00013698,2]
[361267315,1747407035749,-400.0,0.00013698,2]
[361267316,1747407035758,-151.0,0.00013698,2]
[361267317,1747407035768,-151.0,0.00013698,2]
[361267318,1747407035777,-151.0,0.00013698,2]
[361267319,1747407035786,-151.0,0.00013698,2]
[361267320,1747407035795,-151.0,0.00013698,2]
[361267321,1747407035804,-402.60835027,0.00013698,2]
[361267322,1747407035813,-450.0,0.00013698,2]
[361267323,1747407035823,-151.0,0.00013698,2]
[361267324,1747407035832,-400.0,0.00013698,2]
[361267325,1747407035841,-400.0,0.00013698,2]
[361267326,1747407035855,-400.0,0.00013698,2]
[361267327,1747407035864,-400.0,0.00013698,2]
[361267328,1747407035873,-450.0,0.00013698,2]
[361267329,1747407035882,-400.12497917,0.00013698,2]
[361267330,1747407035891,-450.0,0.00013698,2]
[361267331,1747407035901,-662.357359,0.00013698,2]
[361267332,1747407035910,-662.357359,0.00013698,2]
[361267333,1747407035919,-400.0,0.00013698,2]
[361267334,1747407035928,-662.357359,0.00013698,2]
[361267335,1747407035938,-662.357359,0.00013698,2]
[361267336,1747407035946,-450.0,0.00013698,2]
[361267337,1747407035955,-450.0,0.00013698,2]
[361267338,1747407035964,-400.0,0.00013698,2]
[361267339,1747407035973,-400.79467494,0.00013698,2]
[361267340,1747407035982,-450.0,0.00013698,2]
[361267341,1747407035991,-450.0,0.00013698,2]
[361267342,1747407036001,-450.0,0.00013698,2]
[361267343,1747407036010,-400.00118277,0.00013698,2]
[361267344,1747407036019,-450.0,0.00013698,2]
[361267345,1747407036030,-400.83855506,0.00013698,2]
[361267346,1747407036039,-400.0,0.00013698,2]
[361267347,1747407036048,-151.0,0.00013698,2]
[361267348,1747407036057,-450.0,0.00013698,2]
[361267349,1747407036067,-450.0,0.00013698,2]
[361267350,1747407036075,-400.0,0.00013698,2]
[361267351,1747407036084,-431.39,0.00013698,2]
[361267352,1747407036093,-450.0,0.00013698,2]
[361267353,1747407036103,-585.65,0.00013698,2]
[361267354,1747407036111,-400.0,0.00013698,2]
[361267355,1747407036120,-404.8853484,0.00013698,2]
[361267356,1747407036130,-400.0,0.00013698,2]
[361267357,1747407036139,-400.0,0.00013698,2]
[361267358,1747407036148,-417.37,0.00013698,2]
[361267359,1747407036157,-460.09,0.00013698,2]
[361267360,1747407036166,-348.49841985,0.00013698,2]
[361267361,1747407036176,-400.0,0.00013698,2]
[361267362,1747407036185,-400.0,0.00013698,2]
[361267363,1747407036195,-578.79,0.00013698,2]
[361267364,1747407036204,-405.76350598,0.00013698,2]
[361267365,1747407036213,-400.0,0.00013698,2]
[361267366,1747407036223,-450.0,0.00013698,2]
[361267367,1747407036232,-450.0,0.00013698,2]
[361267368,1747407036241,-400.0,0.00013698,2]
[361267369,1747407036251,-400.0,0.00013698,2]
[361267370,1747407036260,-400.0,0.00013698,2]
[361267371,1747407036269,-450.0,0.00013698,2]
[361267372,1747407036279,-450.0,0.00013698,2]
[361267373,1747407036289,-450.0,0.00013698,2]
[361267374,1747407036298,-401.39192368,0.00013698,2]
[361267375,1747407036308,-495.98,0.00013698,2]
[361267376,1747407036317,-400.0,0.00013698,2]
[361267377,1747407036326,-400.0,0.00013698,2]
[361267378,1747407036335,-1211.231304,0.00013698,2]
[361267379,1747407036344,-1211.231304,0.00013698,2]
[361267380,1747407036353,-400.23438546,0.00013698,2]
[361267381,1747407036362,-450.0,0.00013698,2]
[361267382,1747407036371,-450.0,0.00013698,2]